bitfinex/quotes_ETHUSD_20240701
["timestamp","ask_amount","ask_price","bid_price","bid_amount"]
[1719866878687,2.88025,3472.0,3471.6,5.2934]
[1719866878834,2.88025,3472.0,3471.7,2.4118]
[1719866881671,2.88004,3472.2,3471.7,2.4118]
[1719866882257,2.88011,3472.1,3471.7,2.4118]
[1719866884252,2.88018,3472.0,3471.7,2.4118]
[1719866884862,2.88032,3471.9,3471.6,3.0]
[1719866895479,2.88032,3471.9,3471.7,2.2822]
[1719866896894,2.88003,3472.2,3471.7,2.2822]
[1719866897097,0.49857057,3472.1,3471.7,2.2822]
[1719866897314,0.49857057,3472.0,3471.7,3.098478]
[1719866897465,2.88003,3472.2,3471.7,3.098478]
[1719866897668,0.49855694,3472.1,3471.7,3.098478]
[1719866897910,0.49855694,3472.0,3471.7,3.098478]
[1719866898207,2.88003,3472.2,3471.7,3.098478]
[1719866898396,0.49855653,3472.1,3471.7,3.098478]
[1719866898712,0.49855653,3472.0,3471.7,3.098478]
[1719866898904,2.88003,3472.2,3471.7,3.098478]
[1719866899106,0.49855694,3472.1,3471.7,3.098478]
[1719866899275,0.49855694,3472.0,3471.7,3.098478]
[1719866899475,2.88003,3472.2,3471.7,3.098478]
[1719866899671,0.4985564,3472.1,3471.7,3.098478]
[1719866899872,0.4985564,3472.0,3471.7,3.098478]
[1719866900083,3.3786564,3472.1,3471.7,3.098478]
[1719866900283,0.49856411,3472.0,3471.7,3.098478]
[1719866900487,0.99713064,3472.0,3471.7,3.098478]
[1719866900685,0.49856653,3471.9,3471.7,2.2822]
[1719866901496,0.49856411,3472.0,3471.7,2.2822]
[1719866901983,0.49856512,3471.9,3471.7,2.2822]
[1719866902187,0.49856411,3472.0,3471.7,2.2822]
[1719866902385,0.49856617,3471.9,3471.7,2.2822]
[1719866902584,0.49856411,3472.0,3471.7,2.2822]
[1719866902881,0.49856407,3471.9,3471.7,2.2822]
[1719866903079,0.49856411,3472.0,3471.7,2.2822]
[1719866903276,0.49856539,3471.9,3471.7,2.2822]
[1719866903481,0.49856411,3472.0,3471.7,2.2822]
[1719866903725,0.4985654,3471.9,3471.7,2.2822]
[1719866903921,0.49856411,3472.0,3471.7,2.2822]
[1719866904220,0.49856541,3471.9,3471.7,2.2822]
[1719866904520,0.49856411,3472.0,3471.7,2.2822]
[1719866904723,0.49856538,3471.9,3471.7,2.2822]
[1719866904897,0.49856411,3472.0,3471.7,2.2822]
[1719866905105,0.49856683,3471.9,3471.7,2.2822]
[1719866905309,0.49856411,3472.0,3471.7,2.2822]
[1719866905608,0.49856458,3471.9,3471.7,2.2822]
[1719866905802,0.49856411,3472.0,3471.7,2.2822]
[1719866905999,0.49856468,3471.9,3471.7,2.2822]
[1719866906203,0.49856411,3472.0,3471.7,3.098478]
[1719866906416,0.49856394,3471.9,3471.7,3.098478]
[1719866906727,0.49856411,3472.0,3471.7,3.098478]
[1719866907105,0.49855876,3471.9,3471.7,3.098478]
[1719866907306,0.49856411,3472.0,3471.7,2.2822]
[1719866907491,0.49855653,3471.9,3471.7,2.2822]
[1719866907691,0.49856411,3472.0,3471.7,2.2822]
[1719866907892,0.4985573,3471.9,3471.7,2.2822]
[1719866908202,0.49856411,3472.0,3471.7,2.2822]
[1719866908524,0.49855926,3471.9,3471.7,2.2822]
[1719866908739,0.49856411,3472.0,3471.7,2.2822]
[1719866908917,0.49855581,3471.9,3471.7,2.2822]
[1719866909113,0.49856411,3472.0,3471.7,2.2822]
[1719866909428,0.49855423,3471.9,3471.7,2.2822]
[1719866909724,0.49856411,3472.0,3471.7,2.2822]
[1719866909893,0.49855495,3471.9,3471.7,2.2822]
[1719866910092,0.49856411,3472.0,3471.7,2.2822]
[1719866910298,0.49855561,3471.9,3471.7,2.2822]
[1719866910520,0.49856411,3472.0,3471.7,2.2822]
[1719866910723,0.4985545,3471.9,3471.7,2.2822]
[1719866911027,0.49856411,3472.0,3471.7,2.2822]
[1719866911328,0.4985544,3471.9,3471.7,2.2822]
[1719866911531,0.49856411,3472.0,3471.7,2.2822]
[1719866912320,2.88003,3472.2,3471.7,2.2822]
[1719866912542,0.49855427,3472.1,3471.7,2.2822]
[1719866912750,0.49855427,3472.0,3471.7,2.2822]
[1719866912916,0.49855427,3472.1,3471.7,2.2822]
[1719866913331,2.88003,3472.2,3471.7,2.2822]
[1719866913530,0.49855576,3472.0,3471.7,2.2822]
[1719866913848,0.49855576,3471.9,3471.7,2.2822]
[1719866914013,0.49855576,3472.1,3471.7,2.2822]
[1719866914644,0.22120618,3472.0,3471.7,2.2822]
[1719866914950,0.49855576,3471.9,3471.7,2.2822]
[1719866916645,0.22120618,3472.0,3471.7,2.2822]
[1719866916852,0.49856064,3471.9,3471.7,2.2822]
[1719866917059,0.22120618,3472.0,3471.7,2.2822]
[1719866917351,0.49856312,3471.9,3471.7,2.2822]
[1719866917529,0.22120618,3472.0,3471.7,2.2822]
[1719866917714,0.49856144,3471.9,3471.7,2.2822]
[1719866917910,0.22120618,3472.0,3471.7,2.2822]
[1719866918150,0.49856144,3471.9,3471.7,2.2822]
[1719866918346,0.22120618,3472.0,3471.7,2.2822]
[1719866918551,0.49856454,3471.9,3471.7,2.2822]
[1719866918778,0.22120618,3472.0,3471.7,2.2822]
[1719866918922,0.49855861,3471.9,3471.7,2.2822]
[1719866919248,0.22120618,3472.0,3471.7,2.2822]
[1719866919547,0.49855655,3471.9,3471.7,2.2822]
[1719866919855,0.22120618,3472.0,3471.7,2.2822]
[1719866920064,0.49856744,3471.9,3471.7,2.2822]
[1719866920265,0.22120618,3472.0,3471.7,2.2822]
[1719866920473,0.49856536,3471.9,3471.7,2.2822]
[1719866920645,0.22120618,3472.0,3471.7,2.2822]
[1719866920846,0.49856652,3471.9,3471.7,2.2822]
[1719866921156,0.22120618,3472.0,3471.7,2.2822]
[1719866921329,0.49856647,3471.9,3471.7,2.2822]
[1719866921528,0.22120618,3472.0,3471.7,2.2822]
[1719866921733,0.49856651,3471.9,3471.7,2.2822]
[1719866921966,0.22120618,3472.0,3471.7,2.2822]
[1719866922129,0.49856646,3471.9,3471.7,2.2822]
[1719866922333,0.22120618,3472.0,3471.7,2.2822]
[1719866922532,0.49856798,3471.9,3471.7,2.2822]
[1719866922757,0.22120618,3472.0,3471.7,2.2822]
[1719866924349,0.49855809,3471.9,3471.7,2.2822]
[1719866926072,0.22120618,3472.0,3471.7,2.2822]
[1719866927236,0.49855476,3471.9,3471.7,2.2822]
[1719866927550,0.22120618,3472.0,3471.7,2.2822]
[1719866927755,0.49855471,3471.9,3471.7,2.2822]
[1719866927981,0.22120618,3472.0,3471.7,2.2822]
[1719866928182,0.49855581,3471.9,3471.7,2.2822]
[1719866928346,0.22120618,3472.0,3471.7,2.2822]
[1719866928546,0.49855905,3471.9,3471.7,2.2822]
[1719866928781,0.22120618,3472.0,3471.7,2.2822]
[1719866928984,0.49855895,3471.9,3471.7,2.2822]
[1719866929281,0.22120618,3472.0,3471.7,2.2822]
[1719866929582,0.49855716,3471.9,3471.7,2.2822]
[1719866929740,0.22120618,3472.0,3471.7,2.2822]
[1719866929940,0.49855638,3471.9,3471.7,2.2822]
[1719866930179,0.22120618,3472.0,3471.7,2.2822]
[1719866930368,0.49855979,3471.9,3471.7,2.2822]
[1719866930569,0.22120618,3472.0,3471.7,2.2822]
[1719866930769,0.49855977,3471.9,3471.7,2.2822]
[1719866930946,0.22120618,3472.0,3471.7,2.2822]
[1719866931146,0.49855983,3471.9,3471.7,2.2822]
[1719866931347,0.22120618,3472.0,3471.7,2.2822]
[1719866931582,0.49855831,3471.9,3471.7,2.2822]
[1719866931782,0.22120618,3472.0,3471.7,2.2822]
[1719866931986,0.49855822,3471.9,3471.7,2.2822]
[1719866932161,0.22120618,3472.0,3471.7,2.2822]
[1719866932362,0.49855979,3471.9,3471.7,2.2822]
[1719866932581,0.22120618,3472.0,3471.7,2.2822]
[1719866932770,0.49855819,3471.9,3471.7,2.2822]
[1719866933091,0.22120618,3472.0,3471.7,2.2822]
[1719866933296,0.49856544,3471.9,3471.7,2.2822]
[1719866933583,0.8193368,3472.0,3471.7,2.2822]
[1719866933793,0.49856564,3471.9,3471.7,2.2822]
[1719866933964,0.22120618,3472.0,3471.7,2.2822]
[1719866934163,0.49856527,3471.9,3471.7,2.2822]
[1719866934385,0.22120618,3472.0,3471.7,2.2822]
[1719866934584,0.49856693,3471.9,3471.7,2.2822]
[1719866934774,0.22120618,3472.0,3471.7,2.2822]
[1719866934974,0.49856695,3471.9,3471.7,2.2822]
[1719866935176,0.22120618,3472.0,3471.7,2.2822]
[1719866935378,0.49856521,3471.9,3471.7,2.2822]
[1719866935570,0.22120618,3472.0,3471.7,2.2822]
[1719866935889,0.49856584,3471.9,3471.7,2.2822]
[1719866936057,0.22120618,3472.0,3471.7,2.2822]
[1719866936260,0.49856589,3471.9,3471.7,2.2822]
[1719866936591,0.22120618,3472.0,3471.7,2.2822]
[1719866936798,0.49856619,3471.9,3471.7,2.2822]
[1719866936955,0.22120618,3472.0,3471.7,2.2822]
[1719866937153,0.49856619,3471.9,3471.7,2.2822]
[1719866937352,0.22120618,3472.0,3471.7,2.2822]
[1719866937590,0.49856615,3471.9,3471.7,2.2822]
[1719866937793,0.22120618,3472.0,3471.7,2.2822]
[1719866938091,0.49856611,3471.9,3471.7,2.2822]
[1719866938295,0.22120618,3472.0,3471.7,2.2822]
[1719866938595,0.49856607,3471.9,3471.7,2.2822]
[1719866938894,0.22120618,3472.0,3471.7,2.2822]
[1719866939069,0.49856418,3471.9,3471.7,2.2822]
[1719866939272,0.22120618,3472.0,3471.7,2.2822]
[1719866939589,0.498566,3471.9,3471.7,2.2822]
[1719866939794,0.498566,3471.8,3471.7,2.2822]
[1719866939991,0.498566,3471.9,3471.7,2.2822]
[1719866940197,0.49856806,3471.8,3471.7,2.2822]
[1719866941315,3.10138618,3472.0,3471.7,2.2822]
[1719866941495,0.49856646,3471.9,3471.7,2.2822]
[1719866941697,0.49856742,3471.8,3471.7,2.2822]
[1719866943079,0.22120618,3472.0,3471.7,5.16263]
[1719866943292,0.22120618,3472.0,3471.9,2.3207]
[1719866944271,0.71975392,3472.0,3471.9,2.3207]
[1719866944491,0.71975392,3472.0,3471.9,5.82196]
[1719866944686,0.22120618,3472.0,3471.9,5.82196]
[1719866947680,0.22120618,3472.0,3471.9,5.20096]
[1719866947886,0.22120618,3472.0,3471.7,2.2808]
[1719866948193,0.22120618,3472.0,3471.6,3.0]
[1719866948910,3.10140618,3472.0,3471.6,3.0]
[1719866955237,5.98166618,3472.0,3471.6,3.0]
[1719866957306,2.88028,3471.9,3471.6,3.0]
[1719866957513,2.88036,3471.8,3471.6,3.0]
[1719866958619,2.88043,3471.7,3471.6,3.0]
[1719866960341,2.88043,3471.7,3471.2,3.0]
[1719866960342,2.88072,3471.4,3471.2,3.0]
[1719866961815,2.88076,3471.3,3471.2,3.0]
[1719866969556,2.88102,3471.0,3470.8,3.0]
[1719866969764,2.88109,3470.9,3470.8,3.0]
[1719866971244,2.88119,3470.8,3470.6,3.0]
[1719866973155,2.88126,3470.7,3470.6,3.0]
[1719866978832,2.88112,3470.9,3470.6,3.0]
[1719866979165,2.88126,3470.7,3470.6,3.0]
[1719866981672,2.88126,3470.7,3470.4,3.0]
[1719866985442,2.88135,3470.6,3470.4,3.0]
[1719866987378,2.88142,3470.5,3470.4,3.0]
[1719866989781,2.88126,3470.7,3470.4,3.0]
[1719866990095,2.88126,3470.7,3470.4,3.53193286]
[1719866990855,2.88135,3470.6,3470.4,3.53193286]
[1719866992473,2.88135,3470.6,3470.4,3.0]
[1719866997610,2.88113,3470.9,3470.4,3.0]
[1719866997816,0.49874983,3470.8,3470.4,3.0]
[1719866998119,2.88131,3470.7,3470.4,3.0]
[1719867000497,3.38013218,3470.6,3470.4,3.0]
[1719867000719,2.88137,3470.6,3470.4,3.0]
[1719867002329,0.49877827,3470.5,3470.4,3.0]
[1719867003333,2.88137,3470.6,3470.4,3.0]
[1719867003535,0.49877752,3470.5,3470.4,3.0]
[1719867004227,2.88137,3470.6,3470.4,3.0]
[1719867004597,0.49877757,3470.5,3470.4,3.0]
[1719867004907,0.2207003,3470.5,3470.4,3.0]
[1719867005219,0.71948132,3470.5,3470.4,3.0]
[1719867005402,0.7194792,3470.5,3470.4,3.0]
[1719867005610,0.7194826,3470.5,3470.4,3.0]
[1719867006176,0.2207003,3470.5,3470.4,3.0]
[1719867006382,0.71947896,3470.5,3470.4,3.0]
[1719867006615,0.2207003,3470.5,3470.4,3.0]
[1719867006814,0.71948179,3470.5,3470.4,3.0]
[1719867008325,0.71948181,3470.5,3470.4,3.0]
[1719867009051,3.60090181,3470.5,3470.4,3.0]
[1719867011518,3.1021203,3470.5,3470.4,3.0]
[1719867011936,3.60090881,3470.5,3470.4,3.0]
[1719867014857,3.1021203,3470.5,3470.4,3.0]
[1719867015058,3.60090641,3470.5,3470.4,3.0]
[1719867015425,3.60090879,3470.5,3470.4,3.0]
[1719867017965,3.1021203,3470.5,3470.4,3.0]
[1719867018127,3.6009071,3470.5,3470.4,3.0]
[1719867018326,3.60090705,3470.5,3470.4,3.0]
[1719867021169,3.1021203,3470.5,3470.4,3.0]
[1719867021369,3.60090627,3470.5,3470.4,3.0]
[1719867024471,3.1021203,3470.5,3470.4,3.0]
[1719867024644,3.6009097,3470.5,3470.4,3.0]
[1719867028268,3.60093581,3470.5,3470.4,3.0]
[1719867030976,3.1021203,3470.5,3470.4,3.0]
[1719867031141,3.60091951,3470.5,3470.4,3.0]
[1719867033406,3.50091951,3470.5,3470.4,3.0]
[1719867035005,3.5009085,3470.5,3470.4,3.0]
[1719867037610,3.0021203,3470.5,3470.4,3.0]
[1719867037914,3.50092069,3470.5,3470.4,3.0]
[1719867041205,3.0021203,3470.5,3470.4,3.0]
[1719867041522,3.50092248,3470.5,3470.4,3.0]
[1719867043919,3.50093102,3470.5,3470.4,3.0]
[1719867044223,3.50092863,3470.5,3470.4,3.0]
[1719867047215,3.50093437,3470.5,3470.4,3.0]
[1719867049600,0.61951437,3470.5,3470.4,3.0]
[1719867049827,0.61951437,3470.5,3470.4,5.6868]
[1719867049992,0.1207003,3470.5,3470.4,5.6868]
[1719867050498,0.1207003,3470.5,3470.4,2.6868]
[1719867051225,0.1207003,3470.5,3470.4,2.3868]
[1719867063293,0.1207003,3470.5,3470.4,5.3868]
[1719867069627,0.1207003,3470.5,3470.4,5.3868]
[1719867071287,0.1207003,3470.5,3470.4,8.26831]
[1719867078542,0.1207003,3470.5,3470.4,11.77082]
[1719867081552,0.1207003,3470.5,3470.4,11.14982]
[1719867081770,0.1207003,3470.5,3470.4,12.615073]
[1719867089353,0.1207003,3470.5,3470.4,13.236073]
[1719867112717,0.1207003,3470.5,3470.4,12.615073]
[1719867113251,0.1207003,3470.5,3470.4,11.14982]
[1719867124363,0.1207003,3470.5,3470.4,11.77082]
[1719867126070,0.1207003,3470.5,3470.4,11.14982]
[1719867126949,0.1207003,3470.5,3470.4,5.88151]
[1719867127145,0.37472456,3470.5,3470.4,5.88151]
[1719867133373,0.37472456,3470.5,3469.9,2.88191]
[1719867133374,1.6036,3470.4,3470.0,3.0]
[1719867133553,1.6036,3470.2,3470.0,3.0]
[1719867133952,2.09470277,3470.1,3470.0,3.0]
[1719867135243,2.09467833,3470.1,3470.0,3.0]
[1719867138490,2.09498017,3470.1,3470.0,3.0]
[1719867138644,1.6036,3470.2,3470.0,3.0]
[1719867138844,2.88155,3470.4,3470.0,3.0]
[1719867138845,4.48515,3470.4,3470.0,3.0]
[1719867139044,2.0949772,3470.3,3470.0,3.0]
[1719867139265,2.0949772,3470.3,3470.0,5.88183]
[1719867139474,0.37472456,3470.5,3470.1,0.588183]
[1719867139682,2.09484241,3470.4,3470.0,5.88183]
[1719867141082,2.09484241,3470.4,3470.0,3.0]
[1719867141548,2.09493579,3470.3,3470.0,3.0]
[1719867141747,0.37472456,3470.5,3470.0,3.0]
[1719867141988,2.09494408,3470.4,3470.0,3.0]
[1719867143902,4.97647408,3470.4,3470.0,3.0]
[1719867144075,2.09494408,3470.3,3470.0,3.0]
[1719867144768,2.88153,3470.4,3470.0,3.0]
[1719867144977,2.0949494,3470.3,3470.0,3.0]
[1719867147797,2.0949436,3470.3,3470.0,3.0]
[1719867147997,2.88153,3470.4,3470.0,3.0]
[1719867148197,4.18989963,3470.3,3470.0,3.0]
[1719867148488,2.09495024,3470.3,3470.0,3.0]
[1719867163239,0.4987983,3470.2,3470.0,3.0]
[1719867163428,2.09495024,3470.3,3470.0,3.0]
[1719867163650,0.49879827,3470.2,3470.0,3.0]
[1719867163826,2.09495024,3470.3,3470.0,3.0]
[1719867164025,0.49879828,3470.2,3470.0,3.0]
[1719867164253,2.09495024,3470.3,3470.0,3.0]
[1719867164554,0.49879773,3470.2,3470.0,3.0]
[1719867164719,2.09495024,3470.3,3470.0,3.0]
[1719867164912,0.49879746,3470.2,3470.0,3.0]
[1719867165114,2.09495024,3470.3,3470.0,3.0]
[1719867165315,0.49879744,3470.2,3470.0,3.0]
[1719867165534,2.09495024,3470.3,3470.0,3.0]
[1719867165722,0.49879924,3470.2,3470.0,3.0]
[1719867165927,2.09495024,3470.3,3470.0,3.0]
[1719867166221,0.49879835,3470.2,3470.0,3.0]
[1719867166419,2.09495024,3470.3,3470.0,3.0]
[1719867166632,0.49879837,3470.2,3470.0,3.0]
[1719867166833,2.09495024,3470.3,3470.0,3.0]
[1719867167130,0.49879693,3470.2,3470.0,3.0]
[1719867167350,2.09495024,3470.3,3470.0,3.0]
[1719867167764,0.49879694,3470.2,3470.0,3.0]
[1719867168051,2.09495024,3470.3,3470.0,3.0]
[1719867168261,2.59374252,3470.2,3470.0,3.0]
[1719867168452,2.09495024,3470.3,3470.0,3.0]
[1719867168620,2.59374341,3470.2,3470.0,3.0]
[1719867168822,2.09495024,3470.3,3470.0,3.0]
[1719867169021,2.59374266,3470.2,3470.0,3.0]
[1719867169243,2.88153,3470.4,3470.0,3.0]
[1719867169549,2.59374189,3470.3,3470.0,3.0]
[1719867169755,2.59374189,3470.2,3470.0,5.4846]
[1719867169957,2.88153,3470.4,3470.0,5.4846]
[1719867170131,2.59374175,3470.3,3470.0,5.4846]
[1719867170331,2.59374175,3470.2,3470.0,5.4846]
[1719867170639,2.88153,3470.4,3470.0,5.4846]
[1719867170840,2.0949556,3470.3,3470.0,5.4846]
[1719867171044,0.49879681,3470.2,3470.0,5.4846]
[1719867171432,0.49879681,3470.3,3470.0,5.4846]
[1719867171632,2.59373863,3470.2,3470.0,5.4846]
[1719867171951,2.88153,3470.4,3470.0,5.4846]
[1719867172163,2.59373992,3470.3,3470.0,5.4846]
[1719867172470,2.59373992,3470.2,3470.0,5.4846]
[1719867172758,2.88153,3470.4,3470.0,5.4846]
[1719867172957,2.5937455,3470.3,3470.0,5.4846]
[1719867173164,2.5937455,3470.2,3470.0,5.4846]
[1719867173339,2.09494836,3470.1,3470.0,5.4846]
[1719867174133,2.09494514,3470.1,3470.0,5.4846]
[1719867174562,2.09494514,3470.3,3470.0,5.4846]
[1719867174765,0.49879743,3470.2,3470.0,5.4846]
[1719867174953,2.09494514,3470.1,3470.0,5.4846]
[1719867175153,2.09494514,3470.3,3470.0,5.4846]
[1719867175343,0.49879675,3470.2,3470.0,5.4846]
[1719867175541,2.09494514,3470.1,3470.0,5.4846]
[1719867175777,2.09494514,3470.3,3470.0,5.4846]
[1719867175943,2.59374181,3470.2,3470.0,5.4846]
[1719867176145,2.09494514,3470.1,3470.0,5.4846]
[1719867176464,2.09494514,3470.3,3470.0,5.4846]
[1719867176662,0.49879665,3470.2,3470.0,5.4846]
[1719867176838,2.09494514,3470.1,3470.0,5.4846]
[1719867177231,2.88153,3470.4,3470.0,5.4846]
[1719867177432,2.59374281,3470.3,3470.0,5.4846]
[1719867177627,2.59374281,3470.2,3470.0,5.4846]
[1719867177827,2.09494573,3470.1,3470.0,5.4846]
[1719867178032,2.88153,3470.4,3470.0,5.4846]
[1719867178359,2.59374248,3470.3,3470.0,5.4846]
[1719867178544,2.59374248,3470.2,3470.0,5.4846]
[1719867178740,2.09494597,3470.1,3470.0,5.4846]
[1719867178942,2.09494597,3470.3,3470.0,5.4846]
[1719867179160,2.59374253,3470.2,3470.0,5.4846]
[1719867179468,2.88153,3470.4,3470.0,5.4846]
[1719867179469,2.09494597,3470.1,3470.0,5.4846]
[1719867179853,2.09494597,3470.3,3470.0,5.4846]
[1719867180058,0.49879657,3470.2,3470.0,5.4846]
[1719867180259,2.09494597,3470.1,3470.0,5.4846]
[1719867180577,2.09494821,3470.1,3470.0,5.4846]
[1719867181073,2.09494821,3470.3,3470.0,5.4846]
[1719867181377,0.49879732,3470.2,3470.0,5.4846]
[1719867181673,2.09494821,3470.1,3470.0,5.4846]
[1719867181829,2.09494821,3470.3,3470.0,5.4846]
[1719867182045,0.49879623,3470.2,3470.0,5.4846]
[1719867182247,2.09494821,3470.1,3470.0,5.4846]
[1719867182680,2.09494821,3470.3,3470.0,5.4846]
[1719867182980,0.49879731,3470.2,3470.0,5.4846]
[1719867183181,2.0949455,3470.1,3470.0,5.4846]
[1719867183386,2.0949455,3470.3,3470.0,5.4846]
[1719867183577,0.49879653,3470.2,3470.0,5.4846]
[1719867183764,2.0949455,3470.1,3470.0,5.4846]
[1719867183965,2.0949455,3470.3,3470.0,5.4846]
[1719867184184,0.49879268,3470.2,3470.0,5.4846]
[1719867184499,2.0949455,3470.1,3470.0,5.4846]
[1719867184874,0.37472456,3470.5,3470.0,5.4846]
[1719867185081,2.89263835,3470.4,3470.0,5.4846]
[1719867185279,0.49879663,3470.3,3470.0,5.4846]
[1719867185458,0.49879663,3470.4,3470.0,5.4846]
[1719867186459,0.49879602,3470.3,3470.0,5.4846]
[1719867186768,3.25616456,3470.5,3470.0,5.4846]
[1719867186769,0.49879602,3470.2,3470.0,5.4846]
[1719867187003,0.49879602,3470.4,3470.0,5.4846]
[1719867187163,0.49879602,3470.3,3470.0,5.4846]
[1719867187357,0.49879602,3470.2,3470.0,5.4846]
[1719867187566,3.25616456,3470.5,3470.0,5.4846]
[1719867187782,2.89263031,3470.4,3470.0,5.4846]
[1719867187991,0.49879437,3470.3,3470.0,5.4846]
[1719867188194,0.49879437,3470.4,3470.0,5.4846]
[1719867189709,3.25616456,3470.5,3470.0,5.4846]
[1719867189880,0.49879721,3470.3,3470.0,5.4846]
[1719867190066,3.25616456,3470.5,3470.0,5.4846]
[1719867190414,2.89263711,3470.4,3470.0,5.4846]
[1719867190615,0.49879624,3470.3,3470.0,5.4846]
[1719867190903,0.49879624,3470.2,3470.0,5.4846]
[1719867191079,3.25616456,3470.5,3470.0,5.4846]
[1719867191281,2.89265357,3470.4,3470.0,5.4846]
[1719867191578,0.49879397,3470.3,3470.0,5.4846]
[1719867191780,0.49879397,3470.2,3470.0,5.4846]
[1719867191985,0.49879397,3470.4,3470.0,5.4846]
[1719867192880,0.49879467,3470.3,3470.0,5.4846]
[1719867193096,0.49879467,3470.2,3470.0,5.4846]
[1719867193299,0.49879467,3470.4,3470.0,5.4846]
[1719867193471,0.49879469,3470.3,3470.0,5.4846]
[1719867193671,0.49879469,3470.2,3470.0,5.4846]
[1719867194288,3.25616456,3470.5,3470.0,5.4846]
[1719867194519,2.89298335,3470.4,3470.0,5.4846]
[1719867194726,0.4987946,3470.3,3470.0,5.4846]
[1719867194912,0.4987946,3470.4,3470.0,5.4846]
[1719867195116,0.4987946,3470.3,3470.0,5.4846]
[1719867195410,0.4987946,3470.2,3470.0,5.4846]
[1719867195615,3.25616456,3470.5,3470.0,5.4846]
[1719867195814,2.89295922,3470.4,3470.0,5.4846]
[1719867196012,4.09237602,3470.5,3470.0,5.4846]
[1719867196206,0.49879623,3470.3,3470.0,5.4846]
[1719867196406,0.49879623,3470.2,3470.0,5.4846]
[1719867196718,3.25616456,3470.5,3470.0,5.4846]
[1719867196923,2.8929562,3470.4,3470.0,5.4846]
[1719867197090,2.8929562,3470.3,3470.0,5.4846]
[1719867197296,0.49879761,3470.2,3470.0,5.4846]
[1719867197526,3.25616456,3470.5,3470.0,5.4846]
[1719867197718,2.89283883,3470.4,3470.0,5.4846]
[1719867197892,2.89283883,3470.3,3470.0,5.4846]
[1719867198099,0.49879645,3470.2,3470.0,5.4846]
[1719867198398,3.25616456,3470.5,3470.0,5.4846]
[1719867198599,2.89282202,3470.4,3470.0,5.4846]
[1719867198828,2.89282202,3470.3,3470.0,5.4846]
[1719867199035,0.4987965,3470.2,3470.0,8.3664]
[1719867199206,0.4987965,3470.2,3470.1,2.3102]
[1719867199410,0.37472456,3470.5,3470.1,2.3102]
[1719867199612,0.49877605,3470.4,3470.1,2.3102]
[1719867199921,0.37472456,3470.5,3470.1,2.3102]
[1719867199922,0.49877605,3470.3,3470.1,2.67702307]
[1719867200231,0.37472456,3470.5,3470.1,2.3102]
[1719867200429,0.49877837,3470.4,3470.1,2.3102]
[1719867200734,0.49877837,3470.3,3470.1,2.3102]
[1719867200910,0.37472456,3470.5,3470.1,2.3102]
[1719867201225,0.49877281,3470.4,3470.1,2.3102]
[1719867201403,0.49877281,3470.3,3470.1,2.3102]
[1719867201609,0.49877281,3470.4,3470.1,2.3102]
[1719867201809,0.49877281,3470.3,3470.1,2.3102]
[1719867202012,0.37472456,3470.5,3470.1,2.3102]
[1719867202210,0.49877209,3470.4,3470.1,2.3102]
[1719867202420,0.49877209,3470.3,3470.1,2.3102]
[1719867202623,0.37472456,3470.5,3470.1,2.3102]
[1719867202832,0.4987722,3470.4,3470.1,2.3102]
[1719867203029,0.37472456,3470.5,3470.1,2.3102]
[1719867203232,0.49877201,3470.3,3470.2,5.13657]
[1719867203433,0.37472456,3470.5,3470.2,5.13657]
[1719867203730,0.37472456,3470.5,3470.3,5.13649]
[1719867210108,0.37472456,3470.5,3470.4,2.88151]
[1719867210537,0.87348303,3470.5,3470.4,2.88151]
[1719867212324,0.87348172,3470.5,3470.4,2.88151]
[1719867213134,0.87347838,3470.5,3470.4,12.6022774]
[1719867213349,0.87347838,3470.5,3470.4,11.9812774]
[1719867213350,0.37472456,3470.5,3470.4,11.9812774]
[1719867220973,0.62013168,3470.5,3470.4,11.9812774]
[1719867221383,0.62013168,3470.5,3470.4,3.0]
[1719867235061,0.62013168,3470.5,3470.4,5.2527]
[1719867241887,0.62013168,3470.5,3470.4,5.88151]
[1719867242089,0.62013168,3470.5,3470.4,11.20852]
[1719867255586,0.62013168,3470.5,3470.4,5.88151]
[1719867255985,2.714756,3470.5,3470.4,5.88151]
[1719867257407,0.62013168,3470.5,3470.4,5.88151]
[1719867257724,2.71477256,3470.5,3470.4,5.88151]
[1719867258021,2.71477285,3470.5,3470.4,5.88151]
[1719867260632,2.71480704,3470.5,3470.4,5.88151]
[1719867264035,2.71480346,3470.5,3470.4,5.88151]
[1719867267253,0.62013168,3470.5,3470.4,5.88151]
[1719867267436,2.71479861,3470.5,3470.4,5.88151]
[1719867270711,2.71478289,3470.5,3470.4,5.88151]
[1719867270915,0.62013168,3470.5,3470.4,5.88151]
[1719867271409,2.71478284,3470.5,3470.4,5.88151]
[1719867273618,0.62013168,3470.5,3470.4,5.88151]
[1719867273913,2.71482536,3470.5,3470.4,5.88151]
[1719867274717,0.62013168,3470.5,3470.4,12.597336]
[1719867291151,0.62013168,3470.5,3470.4,12.597336]
[1719867301041,0.62013168,3470.5,3470.4,15.478846]
[1719867301242,0.62013168,3470.5,3470.4,12.597336]
[1719867302086,0.62013168,3470.5,3470.4,15.478846]
[1719867302462,0.62013168,3470.5,3470.4,12.597336]
[1719867304066,0.62013168,3470.5,3470.4,9.639336]
[1719867304277,0.62013168,3470.5,3470.4,8.76302]
[1719867306403,0.49943138,3470.5,3470.4,8.76302]
[1719867310841,0.49943138,3470.5,3470.4,5.88151]
[1719867310988,0.49943138,3470.5,3470.3,3.0]
[1719867311212,2.3321685,3470.4,3470.3,3.0]
[1719867311925,0.23745654,3470.4,3470.3,3.0]
[1719867312944,2.33221178,3470.4,3470.3,3.0]
[1719867314114,3.93581178,3470.4,3470.3,3.0]
[1719867317534,4.7295731,3470.4,3470.3,3.0]
[1719867318416,2.63481786,3470.4,3470.3,3.0]
[1719867318640,4.72971332,3470.4,3470.3,3.0]
[1719867318944,3.935952,3470.4,3470.3,3.0]
[1719867321712,3.9359148,3470.4,3470.3,3.0]
[1719867322115,3.93591706,3470.4,3470.3,3.0]
[1719867324070,2.33231706,3470.4,3470.3,3.0]